bitfinex/quotes_BTCUSD_20240826
["timestamp","ask_amount","ask_price","bid_price","bid_amount"]
[1724715674590,1.81301343,63112.0,63111.0,0.062924]
[1724715678690,1.70209965,63112.0,63111.0,0.062924]
[1724715678857,1.81301343,63112.0,63111.0,0.062924]
[1724715679262,1.95595537,63112.0,63111.0,0.062924]
[1724715679588,1.80159989,63112.0,63111.0,0.062924]
[1724715679788,1.79959989,63112.0,63111.0,0.062924]
[1724715680303,1.80159989,63112.0,63111.0,0.062924]
[1724715680698,1.80859989,63112.0,63111.0,0.062924]
[1724715681323,1.79859989,63112.0,63111.0,0.062924]
[1724715681525,1.80759989,63112.0,63111.0,0.062924]
[1724715683995,1.80759989,63112.0,63111.0,0.057924]
[1724715685638,1.83243146,63112.0,63111.0,0.057924]
[1724715688790,1.8076127,63112.0,63111.0,0.057924]
[1724715691400,1.69669892,63112.0,63111.0,0.057924]
[1724715691600,1.8076127,63112.0,63111.0,0.057924]
[1724715693766,1.80825182,63112.0,63111.0,0.057924]
[1724715694531,1.80825182,63112.0,63111.0,0.058748]
[1724715695468,1.80825182,63112.0,63111.0,0.000824]
[1724715695618,1.80825182,63112.0,63108.0,0.0039332]
[1724715695619,0.90788934,63109.0,63108.0,0.0039332]
[1724715695817,1.74073591,63109.0,63108.0,0.0039332]
[1724715696042,2.69720348,63109.0,63108.0,0.0039332]
[1724715698066,2.71120348,63109.0,63108.0,0.0039332]
[1724715698451,2.70320275,63109.0,63108.0,0.0039332]
[1724715704704,2.72803778,63109.0,63108.0,0.0039332]
[1724715705579,1.744126,63105.0,63104.0,0.00795014]
[1724715705779,2.4045254,63105.0,63104.0,0.00795014]
[1724715706752,2.4795254,63105.0,63104.0,0.00795014]
[1724715706965,2.63943181,63105.0,63104.0,0.00795014]
[1724715707146,2.65143181,63105.0,63104.0,0.00795014]
[1724715707279,2.4915254,63105.0,63104.0,0.00795014]
[1724715708043,2.49529409,63105.0,63104.0,0.00795014]
[1724715708343,2.65512843,63105.0,63104.0,0.00795014]
[1724715710235,3.12904778,63105.0,63104.0,0.00795014]
[1724715710411,3.10802373,63105.0,63104.0,0.00795014]
[1724715710782,3.13286083,63105.0,63104.0,0.00795014]
[1724715711223,3.10802373,63105.0,63104.0,0.00795014]
[1724715714445,3.26774426,63105.0,63104.0,0.00795014]
[1724715715553,1.42818334,63097.0,63096.0,0.061]
[1724715715794,1.77425493,63097.0,63096.0,0.061]
[1724715716196,1.77425493,63097.0,63096.0,0.1361]
[1724715717257,1.77625493,63097.0,63096.0,0.1361]
[1724715717435,1.77925493,63097.0,63096.0,0.1361]
[1724715718235,1.77652511,63097.0,63096.0,0.1361]
[1724715719778,1.45774377,63097.0,63096.0,0.1361]
[1724715719954,1.12448317,63097.0,63096.0,0.1361]
[1724715720133,0.86840102,63097.0,63096.0,0.1361]
[1724715720806,0.79743,63097.0,63096.0,0.1361]
[1724715721264,0.005,63097.0,63096.0,0.294588]
[1724715721503,0.005,63097.0,63096.0,0.15929066]
[1724715721722,0.005,63097.0,63096.0,0.1591]
[1724715722167,0.480458,63097.0,63096.0,0.15929066]
[1724715722388,0.163486,63097.0,63096.0,0.15929066]
[1724715722625,0.160486,63097.0,63096.0,0.1591]
[1724715722885,0.160486,63097.0,63096.0,0.15929066]
[1724715723088,0.158486,63097.0,63096.0,0.15929066]
[1724715723264,0.158486,63097.0,63096.0,0.1591]
[1724715723469,0.160486,63097.0,63096.0,0.1591]
[1724715723669,0.002,63097.0,63096.0,0.1591]
[1724715724075,0.001,63097.0,63096.0,0.1591]
[1724715724292,0.002,63097.0,63096.0,0.1601]
[1724715724494,0.160486,63097.0,63096.0,0.1601]
[1724715725937,0.002,63097.0,63096.0,0.1601]
[1724715727840,0.160486,63097.0,63096.0,0.1601]
[1724715729607,0.477458,63097.0,63096.0,0.1601]
[1724715729807,0.160486,63097.0,63096.0,0.1601]
[1724715730193,0.160486,63097.0,63096.0,0.160924]
[1724715730394,0.002,63097.0,63096.0,0.160924]
[1724715730670,0.001,63097.0,63096.0,0.160924]
[1724715731007,0.158482,63099.0,63096.0,0.159924]
[1724715731212,0.158482,63099.0,63098.0,0.1474]
[1724715731438,0.158472,63103.0,63099.0,0.158479]
[1724715731846,0.158472,63103.0,63102.0,0.0644]
[1724715732189,0.158472,63103.0,63102.0,0.1474]
[1724715733517,0.159472,63103.0,63102.0,0.1474]
[1724715733932,0.158472,63103.0,63102.0,0.1474]
[1724715734066,0.158472,63103.0,63102.0,0.1484]
[1724715734277,0.475414,63103.0,63102.0,0.1484]
[1724715739512,0.52280193,63103.0,63102.0,0.1484]
[1724715739716,0.83974393,63103.0,63102.0,0.1484]
[1724715739923,0.83974393,63103.0,63102.0,0.0654]
[1724715740327,0.52280193,63103.0,63102.0,0.0654]
[1724715740577,0.52280193,63103.0,63102.0,0.1484]
[1724715741521,0.52280193,63103.0,63102.0,0.1474]
[1724715741737,0.52280193,63103.0,63102.0,0.1484]
[1724715744983,0.83974393,63103.0,63102.0,0.001]
[1724715746013,0.83974393,63103.0,63102.0,0.1477]
[1724715746918,1.26759971,63103.0,63102.0,0.001]
[1724715747254,1.46083965,63103.0,63102.0,0.001]
[1724715747459,1.46083965,63103.0,63102.0,0.0821]
[1724715748007,1.46083965,63103.0,63102.0,0.001]
[1724715748254,1.46083965,63103.0,63100.0,0.0656]
[1724715748255,0.79238,63101.0,63100.0,0.0656]
[1724715748459,0.83977998,63101.0,63100.0,0.0656]
[1724715749184,1.15673198,63101.0,63100.0,0.0656]
[1724715750123,1.15673198,63101.0,63100.0,0.0666]
[1724715750738,1.109332,63101.0,63100.0,0.0666]
[1724715750931,1.44387539,63101.0,63100.0,0.0666]
[1724715751171,1.109332,63101.0,63100.0,0.0666]
[1724715751583,1.18042443,63101.0,63100.0,0.0666]
[1724715751940,1.34906403,63101.0,63100.0,0.0666]
[1724715753186,1.44386547,63101.0,63100.0,0.0666]
[1724715755914,1.89432981,63101.0,63100.0,0.001]
[1724715756340,2.03649361,63101.0,63100.0,0.001]
[1724715756563,2.20236849,63101.0,63100.0,0.001]
[1724715756917,2.20236849,63101.0,63100.0,0.001824]
[1724715757124,2.05265471,63101.0,63100.0,0.001824]
[1724715757486,1.85552981,63101.0,63100.0,0.000824]
[1724715758155,1.86252981,63101.0,63100.0,0.000824]
[1724715758479,1.86152981,63101.0,63100.0,0.000824]
[1724715758823,1.86952981,63101.0,63100.0,0.000824]
[1724715759276,1.86643968,63101.0,63100.0,0.000824]
[1724715761149,2.78954673,63101.0,63100.0,0.000824]
[1724715761369,2.78954673,63101.0,63096.0,0.000824]
[1724715761370,1.426374,63097.0,63096.0,0.000824]
[1724715761540,1.95632968,63097.0,63096.0,0.000824]
[1724715761745,2.26569738,63097.0,63096.0,0.000824]
[1724715763015,2.27769738,63097.0,63096.0,0.000824]
[1724715763236,2.26569738,63097.0,63096.0,0.000824]
[1724715764084,1.72968778,63097.0,63096.0,0.000824]
[1724715764257,2.26342015,63097.0,63096.0,0.000824]
[1724715764459,2.25342015,63097.0,63096.0,0.000824]
[1724715764905,2.26542015,63097.0,63096.0,0.000824]
[1724715765096,2.27842015,63097.0,63096.0,0.000824]
[1724715765297,2.25342015,63097.0,63096.0,0.000824]
[1724715765652,2.28042015,63097.0,63096.0,0.000824]
[1724715765864,2.75457016,63097.0,63096.0,0.000824]
[1724715767003,2.74157016,63097.0,63096.0,0.000824]
[1724715767209,2.75557016,63097.0,63096.0,0.000824]
[1724715767370,2.74157016,63097.0,63096.0,0.000824]
[1724715767771,2.72757016,63097.0,63096.0,0.000824]
[1724715767997,2.74157016,63097.0,63096.0,0.000824]
[1724715768556,2.90153726,63097.0,63096.0,0.000824]
[1724715768997,2.88153635,63097.0,63096.0,0.000824]
[1724715769607,2.86753635,63097.0,63096.0,0.000824]
[1724715769803,2.88153635,63097.0,63096.0,0.000824]
[1724715770002,2.89553635,63097.0,63096.0,0.000824]
[1724715770348,2.73568037,63097.0,63096.0,0.000824]
[1724715770782,2.77448037,63097.0,63096.0,0.000824]
[1724715771926,1.82758234,63096.0,63095.0,0.00063208]
[1724715772127,2.59679359,63096.0,63095.0,0.00063208]
[1724715772329,2.79172527,63096.0,63095.0,0.00063208]
[1724715772573,2.63559359,63096.0,63095.0,0.00063208]
[1724715773108,1.97740612,63092.0,63091.0,0.0004]
[1724715773251,2.74661737,63092.0,63091.0,0.0004]
[1724715773650,2.77143055,63092.0,63091.0,0.0004]
[1724715773853,3.08842755,63092.0,63091.0,0.0004]
[1724715774254,3.10242755,63092.0,63091.0,0.0004]
[1724715774674,3.1132721,63092.0,63091.0,0.0004]
[1724715775101,3.1272721,63092.0,63091.0,0.0004]
[1724715775298,3.1272721,63092.0,63074.0,0.05731282]
[1724715775299,1.109787,63075.0,63074.0,0.05731282]
[1724715775504,1.26799684,63075.0,63074.0,0.05731282]
[1724715776136,1.22070078,63075.0,63074.0,0.05731282]
[1724715776289,1.22770078,63075.0,63074.0,0.05731282]
[1724715776856,1.27499684,63075.0,63074.0,0.05731282]
[1724715777197,1.22770078,63075.0,63074.0,0.05731282]
[1724715777393,1.23270078,63075.0,63074.0,0.05731282]
[1724715779939,1.23270078,63075.0,63074.0,0.05813682]
[1724715780778,1.83416619,63075.0,63074.0,0.000824]
[1724715780913,1.85781422,63075.0,63074.0,0.000824]
[1724715781116,1.78687013,63075.0,63074.0,0.000824]
[1724715781317,1.85775845,63075.0,63074.0,0.000824]
[1724715781737,1.85075845,63075.0,63074.0,0.000824]
[1724715782103,1.86275845,63075.0,63074.0,0.000824]
[1724715782309,1.70777013,63075.0,63074.0,0.000824]
[1724715782650,1.71777013,63075.0,63074.0,0.000824]
[1724715783227,1.71777013,63075.0,63074.0,0.079024]
[1724715783228,1.76501439,63075.0,63074.0,0.079024]
[1724715783677,1.76501439,63075.0,63074.0,0.000824]
[1724715785305,1.71777013,63075.0,63074.0,0.000824]
[1724715789036,1.71777013,63075.0,63074.0,0.062224]
[1724715791265,1.71777013,63075.0,63074.0,0.000824]
[1724715792259,1.76501759,63075.0,63074.0,0.000824]
[1724715792843,1.24270078,63075.0,63074.0,0.144824]
[1724715793183,1.131787,63075.0,63074.0,0.144824]
[1724715795845,1.24270078,63075.0,63074.0,0.144824]
[1724715797502,0.814705,63075.0,63074.0,0.144824]
[1724715799834,0.022,63075.0,63074.0,0.144824]
[1724715800039,0.022,63075.0,63074.0,0.167824]
[1724715800243,0.022,63075.0,63074.0,0.326367]
[1724715800446,0.012,63075.0,63074.0,0.326367]
[1724715800645,0.012,63075.0,63074.0,0.33243423]
[1724715800881,0.11091378,63085.0,63074.0,0.33243423]
[1724715800882,0.158541,63076.0,63075.0,0.00019066]
[1724715801051,0.475618,63076.0,63075.0,0.144]
[1724715801374,0.792695,63076.0,63075.0,0.144]
[1724715803052,0.7936014,63076.0,63075.0,0.145]
[1724715803803,0.7936014,63076.0,63075.0,0.144]
[1724715803950,0.7956014,63076.0,63075.0,0.144]
[1724715804150,0.84293111,63076.0,63075.0,0.144]
[1724715804415,0.84493111,63076.0,63075.0,0.144]
[1724715804818,0.84793111,63076.0,63075.0,0.144]
[1724715805220,0.8006014,63076.0,63075.0,0.144]
[1724715805625,0.84798754,63076.0,63075.0,0.144]
[1724715806162,0.8006014,63076.0,63075.0,0.144]
[1724715806365,0.8006014,63076.0,63074.0,0.000824]
[1724715806366,1.42867834,63075.0,63074.0,0.000824]
[1724715806593,1.4186774,63075.0,63074.0,0.000824]
[1724715806801,1.44349524,63075.0,63074.0,0.000824]
[1724715807177,1.4186774,63075.0,63074.0,0.000824]
[1724715807741,1.4196774,63075.0,63074.0,0.000824]
[1724715807943,1.4216774,63075.0,63074.0,0.000824]
[1724715808734,1.4196774,63075.0,63074.0,0.000824]
[1724715808940,1.4186774,63075.0,63074.0,0.000824]
[1724715809138,1.4256774,63075.0,63074.0,0.000824]
[1724715809563,1.7427594,63075.0,63074.0,0.000824]
[1724715809770,1.7477594,63075.0,63074.0,0.000824]
[1724715810178,1.7427594,63075.0,63074.0,0.000824]
[1724715810349,1.73792886,63075.0,63074.0,0.000824]
[1724715810552,1.42684686,63075.0,63074.0,0.064024]
[1724715810752,1.41984686,63075.0,63074.0,0.064024]
[1724715811180,1.43092877,63075.0,63074.0,0.064024]
[1724715811382,1.74801077,63075.0,63074.0,0.000824]
[1724715811587,1.43092877,63075.0,63074.0,0.000824]
[1724715812081,1.42492877,63075.0,63074.0,0.000824]
[1724715812400,1.43492877,63075.0,63074.0,0.000824]
[1724715813582,1.75201077,63075.0,63074.0,0.000824]
[1724715814185,1.89421182,63075.0,63074.0,0.000824]
[1724715815236,1.89511822,63075.0,63074.0,0.000824]
[1724715816215,2.15916357,63075.0,63074.0,0.000824]
[1724715817144,2.01696252,63075.0,63074.0,0.000824]
[1724715817467,2.04177968,63075.0,63074.0,0.000824]
[1724715817606,2.01696252,63075.0,63074.0,0.000824]
[1724715818219,2.25374053,63075.0,63074.0,0.000824]
[1724715818586,1.87221534,63073.0,63072.0,0.00012]
[1724715818855,2.6104839,63073.0,63072.0,0.00012]
[1724715819055,2.9275759,63073.0,63072.0,0.00012]
[1724715819258,2.95242648,63073.0,63072.0,0.00012]
[1724715820329,2.96142648,63073.0,63072.0,0.00012]
[1724715820507,2.97142648,63073.0,63072.0,0.00012]
[1724715821359,2.9465759,63073.0,63072.0,0.00012]
[1724715824250,2.8997759,63073.0,63072.0,0.00012]
[1724715824649,2.90215034,63073.0,63072.0,0.00012]
[1724715825342,2.94895034,63073.0,63072.0,0.00012]
[1724715826005,2.82255034,63073.0,63072.0,0.00012]
[1724715826212,2.61637212,63073.0,63072.0,0.00012]
[1724715826534,2.186557,63073.0,63072.0,0.00012]
[1724715826737,2.29747078,63073.0,63072.0,0.00012]
[1724715827063,2.14129277,63073.0,63072.0,0.00012]
[1724715827374,2.14129277,63073.0,63072.0,0.000944]
[1724715827973,2.03037899,63073.0,63072.0,0.000944]
[1724715828180,2.00556178,63073.0,63072.0,0.000944]
[1724715828874,1.81123901,63073.0,63072.0,0.000944]
[1724715829491,1.545914,63073.0,63072.0,0.000944]
[1724715830250,1.622314,63073.0,63072.0,0.000944]
[1724715830661,1.5707335,63073.0,63072.0,0.000944]
[1724715831043,1.72872085,63073.0,63072.0,0.000944]
[1724715832636,2.04581285,63073.0,63072.0,0.000944]
[1724715835578,2.04581285,63073.0,63072.0,0.062044]
[1724715836538,2.04481285,63073.0,63072.0,0.062044]
[1724715836736,2.04581285,63073.0,63072.0,0.062044]
[1724715836939,2.49270485,63073.0,63072.0,0.000944]
[1724715837551,2.50094485,63073.0,63072.0,0.000944]
[1724715839857,2.05224351,63073.0,63072.0,0.000944]
[1724715840045,1.62691151,63073.0,63072.0,0.082644]
[1724715840230,1.62691151,63073.0,63072.0,0.143744]
[1724715841330,1.94400351,63073.0,63072.0,0.062044]
[1724715841527,1.92221454,63073.0,63072.0,0.000944]
[1724715841731,2.18851674,63073.0,63072.0,0.000944]
[1724715843182,2.50560874,63073.0,63072.0,0.000944]
[1724715843865,2.04400351,63073.0,63072.0,0.000944]
[1724715844081,1.72691151,63073.0,63072.0,0.000944]
[1724715844697,2.04400351,63073.0,63072.0,0.000944]
[1724715846795,2.66431232,63073.0,63072.0,0.000944]
[1724715847755,2.34722032,63073.0,63072.0,0.000944]
[1724715847960,2.62579683,63073.0,63072.0,0.000944]
[1724715848155,2.19104231,63073.0,63072.0,0.143744]
[1724715848366,1.90767567,63073.0,63072.0,0.143744]
[1724715848789,2.04397196,63073.0,63072.0,0.143744]
[1724715848951,2.04866469,63073.0,63072.0,0.143744]
[1724715850187,2.19094461,63073.0,63072.0,0.143744]
[1724715851858,2.46202679,63073.0,63072.0,0.143744]
[1724715852270,2.31974687,63073.0,63072.0,0.143744]
[1724715853831,2.32026218,63073.0,63072.0,0.143744]
[1724715854631,2.04168567,63073.0,63072.0,0.143744]
[1724715855490,1.94168567,63073.0,63072.0,0.143744]
[1724715856078,2.19544268,63073.0,63072.0,0.143744]
[1724715857130,2.22026101,63073.0,63072.0,0.143744]
[1724715857627,1.90316901,63073.0,63072.0,0.143744]
[1724715857866,1.47103234,63073.0,63072.0,0.143744]
[1724715858178,1.32864134,63073.0,63072.0,0.143744]
[1724715858635,1.33005278,63073.0,63072.0,0.143744]
[1724715863154,0.22023078,63073.0,63072.0,0.143744]
[1724715863452,0.37610441,63073.0,63072.0,0.32292201]
[1724715863663,0.81173,63073.0,63072.0,0.32292201]
[1724715864016,0.80273,63073.0,63072.0,0.32292201]
[1724715864221,0.80773,63073.0,63072.0,0.32292201]
[1724715864616,0.80273,63073.0,63072.0,0.32292201]
[1724715865046,0.79273,63073.0,63072.0,0.32292201]
[1724715865219,0.80073,63073.0,63072.0,0.32292201]
[1724715865564,0.79273,63073.0,63072.0,0.32292201]
[1724715865918,0.79273,63073.0,63072.0,0.32392201]
[1724715866792,0.475638,63073.0,63072.0,0.32392201]
[1724715872950,0.79273,63073.0,63072.0,0.32392201]
[1724715873753,0.475638,63073.0,63072.0,0.32392201]
[1724715874510,0.158546,63073.0,63072.0,0.32392201]
[1724715874714,0.475638,63073.0,63072.0,0.32392201]
[1724715874951,0.158546,63073.0,63072.0,0.32392201]
[1724715875223,0.0009064,63074.0,63073.0,0.618138]
[1724715875398,0.0009064,63074.0,63073.0,0.79731601]
[1724715876200,0.0009064,63074.0,63073.0,1.11440801]
[1724715876426,0.0009064,63074.0,63073.0,1.11540801]
[1724715876427,0.0029064,63074.0,63073.0,1.11540801]
[1724715876833,0.0019064,63074.0,63073.0,1.11440801]
[1724715877846,0.0019064,63074.0,63073.0,1.43150001]
[1724715878259,0.0009064,63074.0,63073.0,1.43150001]
[1724715878436,0.0009064,63075.0,63073.0,1.43150001]
[1724715878437,0.0009064,63075.0,63074.0,0.935217]
[1724715878676,0.0009064,63075.0,63074.0,1.11439501]
[1724715878876,0.0009064,63075.0,63074.0,1.43148201]
[1724715879083,0.0009064,63075.0,63074.0,1.43248201]
[1724715879587,0.158499,63092.0,63089.0,0.1425]
[1724715879727,0.158499,63092.0,63091.0,0.0606]
[1724715879932,0.158499,63092.0,63091.0,0.32167801]
[1724715882132,0.160499,63092.0,63091.0,0.32167801]
[1724715882626,0.158499,63092.0,63091.0,0.32167801]
[1724715882985,0.158499,63092.0,63091.0,0.32467801]
[1724715883204,0.158499,63092.0,63091.0,0.32367801]
[1724715883394,0.158499,63092.0,63091.0,0.32167801]
[1724715883623,0.158499,63092.0,63091.0,0.32467801]
[1724715883822,0.158499,63092.0,63091.0,0.32867801]
[1724715886593,0.1594054,63092.0,63091.0,0.32867801]
[1724715887641,0.0009064,63092.0,63091.0,0.32867801]
[1724715887847,0.0009064,63092.0,63091.0,0.33184765]
[1724715888247,0.1594044,63092.0,63091.0,0.33184765]
[1724715888560,0.1594044,63092.0,63091.0,0.32867801]
[1724715891933,0.0009064,63092.0,63091.0,0.48717901]
[1724715893601,0.0009064,63092.0,63091.0,0.32867801]
[1724715893796,0.0009064,63092.0,63091.0,0.33184761]
[1724715895702,0.0009064,63092.0,63091.0,0.32867801]
[1724715898282,0.1594044,63092.0,63091.0,0.32867801]
[1724715901716,0.0009064,63092.0,63091.0,0.32367801]
[1724715902156,0.0009064,63092.0,63091.0,0.79918101]
[1724715902780,0.0009064,63092.0,63091.0,1.22747543]
[1724715902954,0.0009064,63092.0,63091.0,0.91047343]
[1724715903985,0.0009064,63092.0,63091.0,0.79918101]
[1724715904214,0.4764014,63092.0,63091.0,0.32367801]
[1724715904388,0.1594044,63092.0,63091.0,0.32367801]
[1724715906796,0.4764014,63092.0,63091.0,0.32367801]
[1724715907015,0.8742984,63092.0,63091.0,0.03]
[1724715907222,1.1912954,63092.0,63091.0,0.007]
[1724715907581,1.5082924,63092.0,63091.0,0.007]
[1724715907781,1.1912954,63092.0,63091.0,0.003]
[1724715908392,1.1922954,63092.0,63091.0,0.003]
[1724715908592,1.1113954,63092.0,63091.0,0.003]
[1724715908792,0.317017,63088.0,63084.0,0.0766]
[1724715909016,0.47554,63086.0,63085.0,0.023]
[1724715910220,0.158513,63086.0,63085.0,0.023]
[1724715910422,0.159513,63086.0,63085.0,0.023]
[1724715910608,0.47654,63086.0,63085.0,0.023]
[1724715911471,0.001,63086.0,63085.0,0.17917801]
[1724715911674,0.002,63086.0,63085.0,0.25034792]
[1724715911911,0.002,63086.0,63085.0,0.40886392]
[1724715913216,0.002,63086.0,63085.0,0.41489441]
[1724715913734,0.002,63086.0,63085.0,0.4117245]
[1724715914524,0.002,63086.0,63085.0,0.7287565]
[1724715914765,0.002,63086.0,63085.0,1.0457885]
[1724715914959,0.002,63086.0,63085.0,1.1270885]
[1724715915159,0.002,63086.0,63085.0,1.4441205]
[1724715916248,0.001,63086.0,63085.0,1.4441205]
[1724715916448,0.002,63086.0,63085.0,1.4441205]
[1724715917019,0.001,63086.0,63085.0,1.4441205]
[1724715917169,0.0009064,63092.0,63091.0,0.936905]
[1724715917493,0.0009064,63092.0,63091.0,1.43308501]
[1724715919173,0.0019064,63092.0,63091.0,1.44008501]
[1724715919580,0.00171563,63092.0,63091.0,1.44008501]
[1724715921116,0.00271563,63092.0,63091.0,1.13108301]
[1724715925353,0.00271563,63092.0,63091.0,1.44808501]
[1724715935682,0.00271563,63092.0,63091.0,1.04978301]
[1724715937210,0.00271563,63092.0,63091.0,0.73278101]
[1724715939958,0.00271563,63092.0,63091.0,0.41577901]
[1724715940171,0.00271563,63092.0,63091.0,0.19417801]
[1724715941119,0.00271563,63092.0,63091.0,0.35267901]
[1724715942324,0.00271563,63092.0,63091.0,0.66968101]
[1724715942688,0.00271563,63092.0,63091.0,0.75168101]
[1724715946577,0.00271563,63092.0,63091.0,0.75250501]
[1724715946945,0.00271563,63092.0,63091.0,1.06950701]
[1724715949063,0.00271563,63092.0,63091.0,1.13190701]
[1724715951246,0.00271563,63092.0,63091.0,1.44890901]
[1724715961100,0.00271563,63092.0,63091.0,1.76691101]
[1724715961329,0.00271563,63092.0,63091.0,2.10587365]
[1724715961534,0.00271563,63092.0,63091.0,2.01100491]
[1724715961684,0.00271563,63092.0,63091.0,2.12959695]
[1724715961868,0.00171563,63092.0,63091.0,2.12259695]
[1724715962080,0.00071563,63092.0,63091.0,2.11459695]
[1724715962271,0.00171563,63092.0,63091.0,2.09483892]
[1724715962473,0.00271563,63092.0,63091.0,2.10183892]
[1724715962947,0.00071563,63092.0,63091.0,2.09083892]
[1724715963169,0.00271563,63092.0,63091.0,2.10883892]
[1724715963360,0.00271563,63092.0,63091.0,2.1172116]
[1724715963766,0.00171563,63092.0,63091.0,2.1032116]
[1724715964016,0.00271563,63092.0,63091.0,2.1172116]
[1724715964399,0.00271563,63092.0,63091.0,2.09346726]
[1724715964996,0.00171563,63092.0,63091.0,2.08946726]
[1724715965198,0.00071563,63092.0,63091.0,2.07543834]
[1724715965400,0.00171563,63092.0,63091.0,2.08943834]
[1724715965600,0.00171563,63092.0,63091.0,2.40644034]
[1724715965815,0.00171563,63092.0,63091.0,2.43018468]
[1724715966405,0.00071563,63092.0,63091.0,2.32133766]
[1724715966607,0.00171563,63092.0,63091.0,2.33533766]
[1724715967020,0.00271563,63092.0,63091.0,2.34933331]
[1724715967335,0.00271563,63092.0,63091.0,2.42039066]
[1724715968464,0.00271563,63092.0,63091.0,2.28281305]
[1724715968968,0.00271563,63092.0,63091.0,2.41942897]
[1724715970349,0.00271563,63092.0,63091.0,2.28283412]
[1724715970551,0.00271563,63092.0,63091.0,2.2117557]
[1724715970764,0.00271563,63092.0,63091.0,2.28283412]
[1724715971389,0.00271563,63092.0,63091.0,2.2117557]
[1724715972612,0.00271563,63092.0,63091.0,2.25912695]
[1724715973633,0.00252487,63092.0,63091.0,2.25912695]
[1724715974591,0.00252487,63092.0,63091.0,2.2117557]
[1724715975646,0.00242216,63092.0,63091.0,2.2117557]
[1724715977793,0.00242216,63092.0,63091.0,2.19691301]
[1724715978022,0.00242216,63092.0,63091.0,2.21176945]
[1724715979008,0.0009064,63100.0,63099.0,1.427329]
[1724715979180,0.0009064,63100.0,63099.0,1.96298542]
[1724715980148,0.0009064,63100.0,63099.0,1.97298542]
[1724715980149,0.0019064,63100.0,63099.0,1.97298542]
[1724715980428,0.0029064,63100.0,63099.0,1.98698542]
[1724715982236,0.0029064,63100.0,63099.0,1.99313247]
[1724715983861,0.0029064,63100.0,63099.0,1.88185406]
[1724715984059,0.0783064,63100.0,63099.0,1.41869206]
[1724715986379,0.0783064,63100.0,63099.0,0.024]
[1724715986380,1.2421554,63100.0,63099.0,0.024]
[1724715986601,1.2421554,63100.0,63099.0,0.18017801]
[1724715986602,0.2912844,63100.0,63099.0,0.18017801]
[1724715986806,0.6082414,63100.0,63099.0,0.18017801]
[1724715987369,1.28962871,63100.0,63099.0,0.024]
[1724715987579,1.31336536,63100.0,63099.0,0.024]
[1724715987778,1.31336536,63100.0,63099.0,0.01]
[1724715987987,1.58613937,63100.0,63099.0,0.01]
[1724715988121,1.58613937,63100.0,63091.0,0.000824]
[1724715988122,0.792492,63092.0,63091.0,0.000824]
[1724715988323,0.871992,63092.0,63091.0,0.000824]
[1724715988765,1.188989,63092.0,63091.0,0.000824]
[1724715989321,1.223489,63092.0,63091.0,0.000824]
[1724715989596,1.223489,63092.0,63091.0,0.004824]
[1724715989809,1.223489,63092.0,63091.0,0.009824]
[1724715994655,1.223489,63092.0,63091.0,0.005824]
[1724715994873,1.223489,63092.0,63091.0,0.000824]
[1724715995036,1.551486,63092.0,63091.0,0.000824]
[1724715995244,1.551486,63092.0,63091.0,0.001824]
[1724715995245,1.78014513,63092.0,63091.0,0.001824]
[1724715995460,1.78105153,63092.0,63091.0,0.001824]
[1724715995998,1.77105153,63092.0,63091.0,0.000824]
[1724715996224,1.78105153,63092.0,63091.0,0.001824]
[1724715996338,1.77005153,63092.0,63091.0,0.001824]
[1724715996763,1.87005153,63092.0,63091.0,0.001824]
[1724715997008,1.86348104,63092.0,63091.0,0.001824]
[1724715997821,1.87448104,63092.0,63091.0,0.001824]
[1724715998355,1.99262984,63092.0,63091.0,0.001824]
[1724715999414,1.96896481,63092.0,63091.0,0.001824]
[1724716000307,1.87448104,63092.0,63091.0,0.001824]
[1724716000515,1.6623924,63092.0,63091.0,0.001824]
[1724716001348,1.73320876,63092.0,63091.0,0.001824]
[1724716001737,1.73320226,63092.0,63091.0,0.001824]
[1724716002319,1.6623924,63092.0,63091.0,0.001824]
[1724716002518,1.70958503,63092.0,63091.0,0.001824]
[1724716004397,1.6623924,63092.0,63091.0,0.001824]
[1724716005597,1.9793894,63092.0,63091.0,0.001824]
[1724716005846,2.13737675,63092.0,63091.0,0.001824]
[1724716006043,1.426644,63085.0,63084.0,0.000824]
[1724716006214,1.82067363,63085.0,63084.0,0.000824]
[1724716006877,2.29569298,63085.0,63084.0,0.000824]
[1724716007074,2.29569298,63085.0,63075.0,0.000824]
[1724716007075,1.82087563,63076.0,63075.0,0.000824]
[1724716008284,1.83287563,63076.0,63075.0,0.000824]
[1724716009068,1.84287563,63076.0,63075.0,0.000824]
[1724716017123,1.72717563,63076.0,63075.0,0.000824]
[1724716017326,1.80507563,63076.0,63075.0,0.000824]
[1724716020010,1.48799863,63076.0,63075.0,0.000824]
[1724716021379,1.83957563,63076.0,63075.0,0.000824]
[1724716025718,0.03630934,63072.0,63071.0,0.0004]
[1724716025921,0.74603235,63072.0,63071.0,0.0004]
[1724716026080,1.79732335,63072.0,63071.0,0.0004]
[1724716026420,2.11442035,63072.0,63071.0,0.0004]
[1724716026828,2.11422956,63072.0,63071.0,0.0004]
[1724716027522,2.12022956,63072.0,63071.0,0.0004]
[1724716027937,2.14508274,63072.0,63071.0,0.0004]
[1724716028173,1.83598574,63072.0,63071.0,0.0004]
[1724716031230,1.83598574,63072.0,63071.0,0.001224]
[1724716031587,1.81113256,63072.0,63071.0,0.001224]
[1724716031727,2.12822956,63072.0,63071.0,0.001224]
[1724716031969,1.81113256,63072.0,63071.0,0.001224]
[1724716033053,2.12822956,63072.0,63071.0,0.001224]
[1724716033236,1.81113256,63072.0,63071.0,0.001224]
[1724716033781,2.12822956,63072.0,63071.0,0.001224]
[1724716033998,1.81113256,63072.0,63071.0,0.001224]
[1724716034402,2.12822956,63072.0,63071.0,0.001224]
[1724716034915,1.83598564,63072.0,63071.0,0.001224]
[1724716035896,2.15308264,63072.0,63071.0,0.001224]
[1724716037654,2.62838632,63072.0,63071.0,0.001224]
[1724716038231,2.31128932,63072.0,63071.0,0.001224]
[1724716038752,2.62838632,63072.0,63071.0,0.001224]
[1724716038957,2.31128932,63072.0,63071.0,0.001224]
[1724716039444,2.62838632,63072.0,63071.0,0.001224]
[1724716040390,2.31128932,63072.0,63071.0,0.001224]
[1724716041408,2.28643624,63072.0,63071.0,0.001224]
[1724716041816,2.60353324,63072.0,63071.0,0.001224]